[Event "ESCC-50 2022"]
[Site "Lublin"]
[Date "2022.07.07"]
[Round "3.4"]
[White "Kirszenberg, Marc"]
[Black "Padrak, Rafal"]
[Result "1/2-1/2"]
[ECO "D36"]
[WhiteElo "2056"]
[BlackElo "2125"]
[Annotator "NA RC"]
[PlyCount "110"]
[EventDate "2022.07.05"]
[EventType "swiss"]
[EventCountry "POL"]
[SourceTitle "playchess.com"]
[Source "ChessBase"]
[SourceQuality "1"]
[TimeControl "40/5400+30:1800+30"]

1. d4 {[%emt 0:00:03]} d5 {[%emt 0:00:09]} 2. c4 {[%emt 0:00:04]} e6 {[%emt 0:00:06]} 3. Nc3 {[%emt 0:00:06]} Nf6 {[%emt 0:00:06]} 4. cxd5 {[%emt 0:00:09]} exd5 {[%emt 0:00:06]} 5. Bg5 {[%emt 0:00:14]} c6 {[%emt 0:00:21]} 6. Qc2 {[%emt 0:00:27]} Be7 {[%emt 0:00:34]} 7. e3 {[%emt 0:00:19]} O-O {[%emt 0:00:26]} 8. Bd3 {[%emt 0:00:13]} h6 {[%emt 0:01:04]} 9. Bh4 {[%emt 0:00:06]} Re8 {[%emt 0:03:23]} 10. Nf3 {[%emt 0:00:23]} Nbd7 {[%emt 0:06:00]} 11. O-O {[%emt 0:00:21]} Ne4 {[%emt 0:00:29]} 12. Bxe7 {[%emt 0:01:11]} Qxe7 {[%emt 0:00:06]} 13. Rab1 {[%emt 0:02:12]} a5 {[%emt 0:08:38]} 14. a3 {[%emt 0:01:34]} g5 {[%emt 0:07:25]} 15. Bxe4 {[%emt 0:07:41]} dxe4 {[%emt 0:01:28]} 16. Nd2 {[%emt 0:00:15]} Nf6 {[%emt 0:00:47]} 17. b4 {[%emt 0:01:31]} Ng4 {[%emt 0:22:11]} 18. Qxe4 {[%emt 0:23:44]} Qxe4 {[%emt 0:00:28]} 19. Ndxe4 {[%emt 0:00:56]} Bf5 {[%emt 0:00:17]} 20. Nd6 {[%emt 0:12:28]} Bxb1 {[%emt 0:03:07]} 21. Nxe8 {[%emt 0:00:16]} Bd3 {[%emt 0:02:47]} 22. Rd1 {[%emt 0:00:57]} axb4 {[%emt 0:06:27]} 23. axb4 {[%emt 0:01:14]} Bc2 {[%emt 0:02:13]} 24. Rc1 {[%emt 0:00:24]} Ra3 {[%emt 0:01:15]} 25. h3 {[%emt 0:05:57]} Nxe3 {[%emt 0:03:51]} 26. fxe3 {[%emt 0:06:23]} Rxc3 {[%emt 0:00:58]} 27. Nd6 {[%emt 0:02:21]} b5 {[%emt 0:03:27]} 28. Kf2 {[%emt 0:07:10]} h5 {[%emt 0:07:50]} 29. e4 {[%emt 0:16:03]} f6 {[%emt 0:07:23]} 30. Ke1 {[%emt 0:01:47]} Re3+ {[%emt 0:01:17]} 31. Kd2 {[%emt 0:00:57]} Rxe4 {[%emt 0:00:10]} 32. Nxe4 {[%emt 0:00:31]} Bxe4 {[%emt 0:00:06]} 33. g3 {[%emt 0:00:29]} Kg7 {[%emt 0:02:21]} 34. Ke3 {[%emt 0:01:12]} Bd5 {[%emt 0:00:14]} 35. h4 {[%emt 0:02:23]} Kh6 {[%emt 0:00:55]} 36. Ra1 {[%emt 0:02:17]} Kg6 {[%emt 0:00:59]} 37. Rf1 {[%emt 0:00:35]} Bc4 {[%emt 0:00:31]} 38. Rf2 {[%emt 0:00:17]} Bd5 {[%emt 0:00:05]} 39. Rf1 {[%emt 0:00:39]} Bc4 {[%emt 0:00:11]} 40. Ra1 {[%emt 0:00:00]} Bd5 {[%emt 0:00:00]} 41. Ra8 {[%emt 0:07:36]} Kg7 {[%emt 0:00:24]} 42. Rd8 {[%emt 0:00:17]} Kg6 {[%emt 0:01:29]} 43. Rf8 {[%emt 0:12:57]} Kg7 {[%emt 0:00:25]} 44. Rc8 {[%emt 0:00:15]} Kg6 {[%emt 0:00:14]} 45. Rf8 {[%emt 0:00:48]} Kg7 {[%emt 0:00:06]} 46. Rd8 {[%emt 0:01:29]} Kg6 {[%emt 0:00:06]} 47. Rh8 {[%emt 0:05:39]} Kg7 {[%emt 0:00:20]} 48. Ra8 {[%emt 0:00:06]} Kg6 {[%emt 0:00:14]} 49. Ra1 {[%emt 0:00:26]} Kf5 {[%emt 0:03:37]} 50. Rf1+ {[%emt 0:01:12]} Kg6 {[%emt 0:00:05]} 51. Rf2 {[%emt 0:00:52]} Kg7 {[%emt 0:01:01]} 52. Rf1 {[%emt 0:03:14]} Kg6 {[%emt 0:00:17]} 53. Rf2 {[%emt 0:00:25]} Kg7 {[%emt 0:00:06]} 54. Rf1 {[%emt 0:00:44]} Kg6 {[%emt 0:00:10]} 55. Rf2 {[%emt 0:00:15]} Kg7 1/2-1/2

[Event "ESCC-50 2022"]
[Site "Lublin"]
[Date "2022.07.07"]
[Round "3.5"]
[White "Leszner, Liliana"]
[Black "Garabetyan, Arno"]
[Result "0-1"]
[ECO "B41"]
[WhiteElo "1872"]
[BlackElo "2056"]
[Annotator "NA RC"]
[PlyCount "58"]
[EventDate "2022.07.05"]
[EventType "swiss"]
[EventCountry "POL"]
[SourceTitle "playchess.com"]
[Source "ChessBase"]
[SourceQuality "1"]
[TimeControl "40/5400+30:1800+30"]

1. e4 {[%emt 0:00:02]} c5 {[%emt 0:00:08]} 2. Nf3 {[%emt 0:00:11]} e6 {[%emt 0:00:10]} 3. d4 {[%emt 0:00:23]} cxd4 {[%emt 0:00:08]} 4. Nxd4 {[%emt 0:00:04]} a6 {[%emt 0:00:21]} 5. Be2 {[%emt 0:00:54]} Nf6 {[%emt 0:00:36]} 6. Nc3 {[%emt 0:00:59]} Qc7 {[%emt 0:00:29]} 7. Bg5 {[%emt 0:02:15]} Bb4 {[%emt 0:02:15]} 8. O-O {[%emt 0:06:08]} Bxc3 {[%emt 0:01:22]} 9. Bxf6 {[%emt 0:00:50]} gxf6 {[%emt 0:00:26]} 10. bxc3 {[%emt 0:00:06]} Qxc3 {[%emt 0:00:11]} 11. Rb1 {[%emt 0:01:07]} Nc6 {[%emt 0:00:38]} 12. Nf3 {[%emt 0:03:06]} Ne5 {[%emt 0:32:50]} 13. Nd2 {[%emt 0:02:51]} b5 {[%emt 0:03:07]} 14. Rb3 {[%emt 0:03:36]} Qc5 {[%emt 0:05:30]} 15. Kh1 {[%emt 0:02:31]} Bb7 {[%emt 0:00:37]} 16. f4 {[%emt 0:01:04]} Nc6 {[%emt 0:00:34]} 17. e5 {[%emt 0:06:03]} Nd4 {[%emt 0:04:29]} 18. Rd3 {[%emt 0:03:53]} Nxe2 {[%emt 0:10:27]} 19. Qxe2 {[%emt 0:01:10]} f5 {[%emt 0:07:10]} 20. Nb3 {[%emt 0:00:49]} Qc7 {[%emt 0:00:29]} 21. Qd2 {[%emt 0:05:35]} Rg8 {[%emt 0:03:27]} 22. Rf2 {[%emt 0:00:13]} Rc8 {[%emt 0:00:21]} 23. Rd6 {[%emt 0:01:16]} Be4 {[%emt 0:14:57]} 24. Nd4 {[%emt 0:02:17]} Qc4 {[%emt 0:00:26]} 25. Ne2 {[%emt 0:04:37]} Qxc2 {[%emt 0:02:45]} 26. Rxd7 {[%emt 0:04:43]} Bd5 {[%emt 0:01:03]} 27. Qxc2 {[%emt 0:06:46]} Rxc2 {[%emt 0:00:03]} 28. Rd6 {[%emt 0:01:52]} Rxa2 {[%emt 0:01:45]} 29. Kg1 {[%emt 0:00:38]} Ra3 0-1

[Event "ESCC-50 2022"]
[Site "Lublin"]
[Date "2022.07.07"]
[Round "3.6"]
[White "Sielicki, Tomasz"]
[Black "Chlewinski, Artur"]
[Result "1-0"]
[ECO "A45"]
[WhiteElo "1967"]
[BlackElo "1417"]
[Annotator "TA"]
[PlyCount "91"]
[EventDate "2022.07.05"]
[EventType "swiss"]
[EventCountry "POL"]
[SourceTitle "playchess.com"]
[Source "ChessBase"]
[SourceQuality "1"]
[TimeControl "40/5400+30:1800+30"]

{[%evp 9,91,49,49,20,45,37,68,-296,91,28,34,27,26,21,127,122,152,81,80,68,72,75,67,33,49,49,83,12,130,114,162,162,170,176,431,432,430,417,528,527,500,504,554,550,549,534,522,528,566,564,538,550,611,612,718,697,854,852,816,812,879,861,1224,1191,1429,1117,2654,1952,4779,4770,29981,29972,29974,29971,29975,29976,29976,29977,29981,29982,29987,29988,29991,29992]} 1. d4 {[%emt 0:00:06]} Nf6 {[%emt 0:00:07]} 2. Bf4 {[%emt 0:00:25]} g6 {[%emt 0:02:36]} 3. Nc3 {[%emt 0:01:00]} c6 {[%emt 0:08:18]} 4. e4 {[%emt 0:01:10]} d6 {[%emt 0:05:45]} 5. Qd2 {[%emt 0:00:58]} Bg7 {[%emt 0:00:21]} 6. O-O-O {[%emt 0:01:15] B07: Pirc Defence: Miscellaneous Systems.} Qa5 {[%emt 0:09:01]} 7. Kb1 {[%emt 0:02:17]} Be6 {[%emt 0:06:29][%cal Of6e4] Threatens to win with ...Nxe4!} 8. Nf3 $2 {[%emt 0:17:50][%mdl 8192] [#]} (8. f3 $14 {stays ahead.}) 8... Na6 $146 {[%emt 0:10:46]} (8... Nxe4 $1 $19 {[%mdl 512]} 9. Qe3 (9. Qe1 Nxc3+) 9... Nxc3+ 10. Qxc3 Qxa2+ 11. Kc1 O-O) ({Predecessor:} 8... Nxe4 9. Qe3 Nxc3+ 10. Qxc3 Qxa2+ 11. Kc1 Nd7 12. Ng5 Nc5 13. Qa3 Qxa3 14. bxa3 Nd7 15. Nxe6 fxe6 {0-1 (42) Lara Pueyo,F-Del Corral Abancens,A Spain 1993}) 9. Nd5 {[%emt 0:08:38]} Qxd2 $11 {[%emt 0:01:34]} 10. Nxf6+ {[%emt 0:00:32]} Bxf6 {[%emt 0:00:14]} 11. Rxd2 {[%emt 0:00:18]} b5 {[%emt 0:00:26]} (11... Nc7 $11 {remains equal.}) 12. d5 $16 {[%emt 0:04:40]} Bd7 {[%emt 0:01:11]} 13. e5 {[%emt 0:08:20]} (13. dxc6 $142 $1 Bxc6 14. a4) 13... dxe5 {[%emt 0:02:30]} 14. Nxe5 {[%emt 0:01:49]} Bxe5 {[%emt 0:01:42]} 15. Bxe5 {[%emt 0:00:11]} f6 {[%emt 0:00:21]} 16. Bg3 {[%emt 0:03:44][%cal Be5g3,Bg3f2,Bf2c5][%mdl 32] And now dxc6 would win. White is more active.} Nc5 {[%emt 0:10:44]} 17. f3 $36 {[%emt 0:01:41][%mdl 2048] Inhibits Ne4. White fights for an advantage.} a5 {[%emt 0:00:47]} 18. c4 {[%emt 0:05:36]} ({Better is} 18. Bf2 $16 Nb7 19. c4) 18... cxd5 {[%emt 0:04:34] White now steadily converts the win.} (18... Bf5+ $11 19. Kc1 bxc4) 19. Rxd5 {[%emt 0:00:55]} (19. cxb5 Bf5+ 20. Kc1 Rc8 21. Rxd5 Be6 $17) 19... Bf5+ {[%emt 0:00:38]} (19... Rc8 $16) 20. Kc1 $18 {[%emt 0:01:56]} Rc8 {[%emt 0:00:25]} 21. Bf2 {[%emt 0:01:09]} (21. cxb5 $2 Be6 22. Rd1 Nb3+ 23. Kb1 Bf5+ 24. Bd3 Rc1+ $1 25. Rxc1 Bxd3+ 26. Rc2 Nd4 $17) 21... bxc4 $2 {[%emt 0:07:34]} (21... Nb7) 22. Rxc5 {[%emt 0:00:47]} ({Worse is} 22. Bxc5 Be6 23. Bxe7 Bxd5 24. Bxf6 O-O $17) 22... Rxc5 {[%emt 0:00:01]} 23. Bxc5 {[%emt 0:00:12]} c3 {[%emt 0:04:06]} 24. bxc3 {[%emt 0:00:43]} Kf7 {[%emt 0:00:18]} 25. Bc4+ {[%emt 0:05:41]} Kg7 {[%emt 0:00:50]} 26. Bxe7 {[%emt 0:04:27]} Rc8 {[%emt 0:00:28]} 27. Bb3 {[%emt 0:00:39]} Rxc3+ {[%emt 0:00:07]} 28. Kd2 {[%emt 0:00:09]} Rc7 29. Re1 {[%emt 0:01:04]} Rd7+ {[%emt 0:01:07]} 30. Kc1 {[%emt 0:01:11]} Rc7+ {[%emt 0:00:13] [#]} 31. Kb2 $1 {[%emt 0:01:24]} g5 {[%emt 0:02:21]} 32. Bd6 {[%emt 0:01:08]} Rb7 {[%emt 0:01:24]} 33. Re7+ {[%emt 0:00:12]} Rxe7 {[%emt 0:00:50]} 34. Bxe7 {[%emt 0:00:07]} h5 {[%emt 0:00:23]} 35. Bd8 {[%emt 0:00:17]} g4 {[%emt 0:00:24]} 36. Bxa5 {[%emt 0:00:56]} Bd3 {[%emt 0:01:33]} 37. Bd5 {[%emt 0:01:04]} f5 {[%emt 0:02:02]} 38. Bc3+ {[%emt 0:00:35]} Kg6 {[%emt 0:00:38]} 39. a4 {[%emt 0:00:28][%cal Ba2a4,Ba4a5][%mdl 32]} f4 {[%emt 0:02:05]} 40. fxg4 {[%emt 0:00:00] White mates.} hxg4 {[%emt 0:00:00]} 41. a5 {[%emt 0:06:09]} Ba6 {[%emt 0:03:45]} 42. Be4+ {[%emt 0:02:25]} Kh5 {[%emt 0:05:47]} 43. Bd2 {[%emt 0:00:22]} f3 {[%emt 0:06:50]} 44. gxf3 {[%emt 0:00:09]} g3 {[%emt 0:00:36]} 45. hxg3 {[%emt 0:00:31][%cal Bh2g3,Bg3g4][%mdl 32]} Bd3 {[%emt 0:00:06]} 46. g4+ {[%emt 0:00:24] Weighted Error Value: White=0.42/Black=0.68} 1-0

[Event "ESCC-50 2022"]
[Site "Lublin"]
[Date "2022.07.07"]
[Round "3.8"]
[White "Lilja, Richard"]
[Black "Warnk, Torsten"]
[Result "1-0"]
[ECO "A03"]
[WhiteElo "2131"]
[BlackElo "1763"]
[Annotator "RC"]
[PlyCount "115"]
[EventDate "2022.07.05"]
[EventType "swiss"]
[EventCountry "POL"]
[SourceTitle "playchess.com"]
[Source "ChessBase"]
[SourceQuality "1"]
[TimeControl "40/5400+30:1800+30"]

1. f4 {[%emt 0:00:04]} d5 {[%emt 0:00:46]} 2. e3 {[%emt 0:00:27]} Nc6 {[%emt 0:01:17]} 3. Nf3 {[%emt 0:00:39]} Nf6 {[%emt 0:00:29]} 4. b3 {[%emt 0:02:31]} d4 {[%emt 0:04:42]} 5. Bb5 {[%emt 0:14:43]} dxe3 {[%emt 0:01:36]} 6. Bb2 {[%emt 0:03:34]} Bg4 {[%emt 0:06:36]} 7. h3 {[%emt 0:03:45]} Bxf3 {[%emt 0:01:57]} 8. Qxf3 {[%emt 0:00:06]} exd2+ {[%emt 0:00:40]} 9. Nxd2 {[%emt 0:00:07]} Qd5 {[%emt 0:00:39]} 10. Bxc6+ {[%emt 0:01:56]} bxc6 {[%emt 0:01:23]} 11. O-O-O {[%emt 0:00:25]} e6 {[%emt 0:04:22]} 12. f5 {[%emt 0:06:54]} Qxf3 {[%emt 0:12:28]} 13. Nxf3 {[%emt 0:00:06]} Bd6 {[%emt 0:05:42]} 14. fxe6 {[%emt 0:00:46]} fxe6 {[%emt 0:00:20]} 15. Rhe1 {[%emt 0:04:08]} O-O-O {[%emt 0:05:07]} 16. Kb1 {[%emt 0:08:48]} e5 {[%emt 0:09:48]} 17. Nxe5 {[%emt 0:04:05]} Bxe5 {[%emt 0:04:09]} 18. Bxe5 {[%emt 0:00:52]} Rxd1+ {[%emt 0:00:49]} 19. Rxd1 {[%emt 0:00:04]} Nd5 {[%emt 0:06:23]} 20. g4 {[%emt 0:05:13]} Rg8 {[%emt 0:02:52]} 21. Rf1 {[%emt 0:03:49]} g6 {[%emt 0:08:29]} 22. c4 {[%emt 0:00:44]} Nb6 {[%emt 0:01:29]} 23. Rf7 {[%emt 0:17:51]} Nd7 {[%emt 0:00:17]} 24. Bd4 {[%emt 0:00:12]} c5 {[%emt 0:01:46]} 25. Bc3 {[%emt 0:01:49]} h5 {[%emt 0:00:27]} 26. Kc2 {[%emt 0:02:01]} hxg4 {[%emt 0:06:06]} 27. hxg4 {[%emt 0:00:02]} Rf8 {[%emt 0:03:29]} 28. Rg7 {[%emt 0:01:33]} Rf2+ {[%emt 0:00:25]} 29. Kd3 {[%emt 0:04:24]} Rf3+ {[%emt 0:01:15]} 30. Kd2 {[%emt 0:00:12]} Nf6 {[%emt 0:01:12]} 31. Bxf6 {[%emt 0:03:24]} Rxf6 {[%emt 0:00:08]} 32. Ke3 {[%emt 0:00:08]} Ra6 {[%emt 0:00:41]} 33. Ke4 {[%emt 0:01:41]} Rxa2 {[%emt 0:01:45]} 34. Rxg6 {[%emt 0:00:09]} Ra3 {[%emt 0:00:29]} 35. g5 {[%emt 0:00:53]} Rxb3 {[%emt 0:00:15]} 36. Ra6 {[%emt 0:03:33]} Rg3 {[%emt 0:03:03]} 37. Kf4 {[%emt 0:01:53]} Rg1 {[%emt 0:03:14]} 38. Rxa7 {[%emt 0:01:24]} Kd7 {[%emt 0:00:17]} 39. Kf5 {[%emt 0:00:22]} Rf1+ {[%emt 0:00:31]} 40. Kg6 Rf4 {[%emt 0:00:00]} 41. Ra4 {[%emt 0:03:37]} Ke7 {[%emt 0:04:59]} 42. Kg7 {[%emt 0:01:55]} Rg4 {[%emt 0:03:15]} 43. g6 {[%emt 0:00:16]} Rh4 {[%emt 0:03:03]} 44. Kg8 {[%emt 0:05:37]} Rg4 {[%emt 0:01:40]} 45. g7 {[%emt 0:00:16]} Rh4 {[%emt 0:00:08]} 46. Ra7 {[%emt 0:04:28]} Rxc4 {[%emt 0:00:16]} 47. Rxc7+ {[%emt 0:00:08]} Kd6 {[%emt 0:00:19]} 48. Rf7 {[%emt 0:02:03]} Rg4 {[%emt 0:02:51]} 49. Rf5 {[%emt 0:04:08]} Kc6 {[%emt 0:07:23]} 50. Kf7 {[%emt 0:02:02]} Kb5 {[%emt 0:00:11]} 51. Kf6 {[%emt 0:01:16]} Rxg7 {[%emt 0:00:12]} 52. Kxg7 {[%emt 0:00:04]} Kb4 {[%emt 0:00:05]} 53. Kf6 {[%emt 0:00:26]} c4 {[%emt 0:00:02]} 54. Ke5 {[%emt 0:00:24]} c3 {[%emt 0:01:00]} 55. Kd4 {[%emt 0:00:25]} c2 {[%emt 0:01:28]} 56. Rf1 {[%emt 0:00:05]} Kb3 {[%emt 0:00:55]} 57. Kd3 {[%emt 0:00:07]} Kb2 {[%emt 0:01:06]} 58. Kd2 {[%emt 0:00:06]} 1-0

[Event "ESCC-50 2022"]
[Site "Lublin"]
[Date "2022.07.07"]
[Round "3.9"]
[White "Krzyzanowski, Wojciech"]
[Black "Wielosz, Jaroslaw"]
[Result "0-1"]
[ECO "C55"]
[WhiteElo "1878"]
[BlackElo "1891"]
[Annotator "NA RC COMBH"]
[PlyCount "54"]
[EventDate "2022.07.05"]
[EventType "swiss"]
[EventCountry "POL"]
[SourceTitle "playchess.com"]
[Source "ChessBase"]
[SourceQuality "1"]
[TimeControl "40/5400+30:1800+30"]

1. e4 {[%emt 0:00:01]} e5 {[%emt 0:00:12]} 2. Nf3 {[%emt 0:00:04]} Nc6 {[%emt 0:00:11]} 3. Bc4 {[%emt 0:00:06]} Bc5 {[%emt 0:00:14]} 4. O-O {[%emt 0:00:06]} Nf6 {[%emt 0:00:23]} 5. d4 {[%emt 0:00:11]} exd4 {[%emt 0:00:34]} 6. e5 {[%emt 0:00:06]} d5 {[%emt 0:00:24]} 7. exf6 {[%emt 0:00:06]} dxc4 {[%emt 0:00:10]} 8. fxg7 {[%emt 0:00:09]} Rg8 {[%emt 0:00:22]} 9. Bg5 {[%emt 0:00:05]} Be7 {[%emt 0:01:11]} 10. Bxe7 {[%emt 0:00:07]} Kxe7 {[%emt 0:00:29]} 11. Nbd2 {[%emt 0:01:28]} Be6 {[%emt 0:05:41]} 12. b3 {[%emt 0:13:11]} cxb3 {[%emt 0:05:35]} 13. Nxb3 {[%emt 0:00:47]} Rxg7 {[%emt 0:18:32]} 14. Nbxd4 {[%emt 0:02:33]} Nxd4 {[%emt 0:02:21]} 15. Qxd4 {[%emt 0:00:20]} Qxd4 {[%emt 0:01:44]} 16. Nxd4 {[%emt 0:00:01]} Rd8 {[%emt 0:07:13]} 17. Nxe6 {[%emt 0:01:30]} fxe6 {[%emt 0:01:45]} 18. Rfd1 {[%emt 0:00:56]} Rg5 {[%emt 0:04:58]} 19. Rxd8 {[%emt 0:00:54]} Kxd8 {[%emt 0:00:08]} 20. Rd1+ {[%emt 0:00:02]} Ke7 {[%emt 0:00:19]} 21. Rd2 {[%emt 0:00:18]} Rb5 {[%emt 0:01:09]} 22. f4 {[%emt 0:02:08]} Rb2 {[%emt 0:00:58]} 23. Re2 {[%emt 0:01:22]} Rxa2 {[%emt 0:03:47]} 24. f5 {[%emt 0:00:30]} Ra6 {[%emt 0:00:59]} 25. fxe6 {[%emt 0:00:40]} Rxe6 {[%emt 0:00:37]} 26. Rd2 {[%emt 0:00:01]} a5 {[%emt 0:01:38]} 27. Kf2 {[%emt 0:00:06]} a4 {[%emt 0:01:36]} 0-1

[Event "ESCC-50 2022"]
[Site "Lublin"]
[Date "2022.07.07"]
[Round "3.10"]
[White "Chwalewski, Marek"]
[Black "Puroila, Sippo"]
[Result "0-1"]
[ECO "A00"]
[WhiteElo "1774"]
[BlackElo "1803"]
[Annotator "NA RC COMBH"]
[PlyCount "108"]
[EventDate "2022.07.05"]
[EventType "swiss"]
[EventCountry "POL"]
[SourceTitle "playchess.com"]
[Source "ChessBase"]
[SourceQuality "1"]
[TimeControl "40/5400+30:1800+30"]

1. g3 {[%emt 0:00:18]} c6 {[%emt 0:00:21]} 2. c4 {[%emt 0:00:13]} d6 {[%emt 0:00:18]} 3. d4 {[%emt 0:00:21]} g6 {[%emt 0:00:17]} 4. Bg2 {[%emt 0:00:37]} Bg7 {[%emt 0:00:09]} 5. Nc3 {[%emt 0:00:28]} Qc7 {[%emt 0:00:21]} 6. f4 {[%emt 0:01:46]} e5 {[%emt 0:01:29]} 7. fxe5 {[%emt 0:00:25]} dxe5 {[%emt 0:00:03]} 8. d5 {[%emt 0:00:55]} Nf6 {[%emt 0:09:46]} 9. Bg5 {[%emt 0:01:10]} O-O {[%emt 0:00:51]} 10. Bxf6 {[%emt 0:01:38]} Bxf6 {[%emt 0:00:04]} 11. e4 {[%emt 0:00:12]} Nd7 {[%emt 0:07:14]} 12. Nf3 {[%emt 0:02:56]} Bg7 {[%emt 0:00:49]} 13. Qe2 {[%emt 0:02:44]} a6 {[%emt 0:00:42]} 14. O-O {[%emt 0:01:45]} Rb8 {[%emt 0:07:27]} 15. Rac1 {[%emt 0:00:56]} c5 {[%emt 0:01:44]} 16. a4 {[%emt 0:00:29]} Qd6 {[%emt 0:00:23]} 17. Nh4 {[%emt 0:05:38]} Nf6 {[%emt 0:01:40]} 18. h3 {[%emt 0:00:13]} Nh5 {[%emt 0:00:19]} 19. Kh2 {[%emt 0:00:12]} Bd7 {[%emt 0:02:25]} 20. Bf3 {[%emt 0:02:21]} Nf6 {[%emt 0:01:09]} 21. g4 {[%emt 0:00:27]} Bh6 {[%emt 0:00:23]} 22. Rc2 {[%emt 0:00:59]} Bf4+ {[%emt 0:00:08]} 23. Kh1 {[%emt 0:01:41]} Kg7 {[%emt 0:03:03]} 24. Rg1 {[%emt 0:02:23]} Rh8 {[%emt 0:02:49]} 25. Ng2 {[%emt 0:12:37]} Rbe8 {[%emt 0:23:05]} 26. Nxf4 {[%emt 0:02:31]} exf4 {[%emt 0:00:03]} 27. g5 {[%emt 0:03:33]} Ng8 {[%emt 0:00:01]} 28. Bg4 {[%emt 0:00:42]} f5 {[%emt 0:00:09]} 29. gxf6+ {[%emt 0:01:31]} Nxf6 {[%emt 0:00:12]} 30. Qf3 {[%emt 0:00:40]} Nxg4 {[%emt 0:00:57]} 31. hxg4 {[%emt 0:00:23]} h5 {[%emt 0:00:07]} 32. gxh5 {[%emt 0:01:10]} Rxh5+ {[%emt 0:00:13]} 33. Rh2 {[%emt 0:00:14]} Rxh2+ {[%emt 0:00:42]} 34. Kxh2 {[%emt 0:00:10]} Rh8+ {[%emt 0:00:10]} 35. Kg2 {[%emt 0:00:23]} Rh3 {[%emt 0:00:14]} 36. Qf2 {[%emt 0:02:52]} f3+ {[%emt 0:05:46]} 37. Kf1 {[%emt 0:00:10]} Qf4 {[%emt 0:00:14]} 38. e5 {[%emt 0:14:34]} Rh2 {[%emt 0:01:59]} 39. e6 {[%emt 0:00:05]} Rxf2+ {[%emt 0:00:18]} 40. Kxf2 {[%emt 0:00:00]} Be8 {[%emt 0:00:00]} 41. Rg3 {[%emt 0:01:06]} Qd2+ {[%emt 0:05:52]} 42. Kxf3 {[%emt 0:00:38]} Qxb2 {[%emt 0:00:07]} 43. Ke4 {[%emt 0:02:04]} Qc2+ {[%emt 0:00:24]} 44. Ke5 {[%emt 0:01:35]} Qf5+ {[%emt 0:00:30]} 45. Kd6 {[%emt 0:01:19]} Qf4+ {[%emt 0:00:20]} 46. Ke7 {[%emt 0:01:49]} Qxg3 {[%emt 0:00:09]} 47. Kxe8 {[%emt 0:00:20]} Qxc3 {[%emt 0:00:42]} 48. d6 {[%emt 0:00:07]} Qxc4 {[%emt 0:02:39]} 49. Ke7 {[%emt 0:02:00]} Qh4+ {[%emt 0:01:43]} 50. Kd7 {[%emt 0:00:23]} Qxa4+ {[%emt 0:00:09]} 51. Ke7 {[%emt 0:00:36]} Qh4+ {[%emt 0:05:39]} 52. Kd7 {[%emt 0:00:16]} Kf6 {[%emt 0:02:18]} 53. e7 {[%emt 0:00:21]} Qh3+ {[%emt 0:00:31]} 54. Kd8 {[%emt 0:00:46]} Qe6 {[%emt 0:00:58]} 0-1